Cogmind - Beta 17 @@@ ROGUE MODE // 2026.08.01 @ 22:29:24 Player: Scuttle Result: Destroyed by RK-EEC(R) with Subdweller Machine Gun Performance ------------- Evolutions (0) 0 Regions Visited (2) 400 Robots Destroyed (16) 80 Value Destroyed (347) 347 Prototype IDs (0) 0 Alien Tech Used (0) 0 Bonus (0) 0 TOTAL SCORE: 827 Bonus ------- None Cogmind --------- Core Integrity 0/250 Matter 290/300 Energy 35/250 System Corruption 0% Temperature Cool (0) Movement Core (150) Ox2 Location -10/Subcaves Parts ------- > --- POWER (1) -------- Ion Engine > --- PROPULSION (2) --- Subdweller Monowheel > --- UTILITY (2) ------ (None) > --- WEAPON (2) ------- Subdweller Laser > --- INVENTORY (5) ---- Large Storage Unit Subdweller Laser Peak State ------------ > --- POWER ------------ Light Ion Engine > --- PROPULSION ------- Light Treads Light Treads > --- UTILITY ---------- Sensor Array Seismic Detector > --- WEAPON ----------- Medium Laser Small Laser > --- INVENTORY -------- (None) [Rating: 7] Favorites ----------- Power Light Ion Engine Engine Light Ion Engine Propulsion Light Treads Treads Light Treads Wheel Subdweller Monowheel Utility Seismic Detector Device Seismic Detector Weapon Small Laser Energy Gun Small Laser Build | -11 -10 -10 ------- Run | Yrd Mat Sub Slots Evolved . | . . . Power . | . . . Propulsion . | . . . Utility . | . . . Weapon . | . . . Parts Attached 15 | 6 4 5 Power 3 | 1 1 1 Engine 3 | 1 1 1 Core . | . . . Reactor . | . . . Propulsion 4 | 2 1 1 Treads 2 | 1 1 . Leg . | . . . Wheel 2 | 1 . 1 Hover . | . . . Flight . | . . . Utility 3 | 1 2 . Device 3 | 1 2 . Storage . | . . . Processor . | . . . Hackware . | . . . Protection . | . . . Artifact . | . . . Weapon 5 | 2 . 3 Energy Gun 5 | 2 . 3 Energy Cannon . | . . . Ballistic Gun . | . . . Ballistic Cannon . | . . . Launcher . | . . . Special Weapon . | . . . Impact Weapon . | . . . Slashing Weapon . | . . . Piercing Weapon . | . . . Special Melee Weapon . | . . . Unidentified Prototypes . | . . . Parts Lost 8 | . 1 7 Power 2 | . 1 1 Propulsion 2 | . . 2 Utility 2 | . . 2 Weapon 2 | . . 2 Highest Loss Streak 4 | . 1 4 To Critical Strikes . | . . . Average Backups 1 | 1 1 2 Power . | . . . Propulsion . | 1 . . Utility . | . . 1 Weapon . | . . . Tool/Special . | . . . Unused Backups 3 | 1 1 1 Power . | . . . Propulsion 2 | 1 1 . Utility 1 | . . 1 Weapon . | . . . Tool/Special . | . . . Average Slot Usage (%) 89 | . 95 80 Engine 10 | . 12 5 Treads 22 | . 25 18 Wheel 4 | . 2 7 Device 23 | . 25 19 Energy Gun 27 | . 27 28 Peak Build Rating 7 | 6 7 7 Average Rating 6 | 4 6 6 On Entrance 4 | . 6 7 Avg Prop Armor Cover (%) 19 | 15 16 21 Naked Turns . | . . . Heaviest Build 9 | 9 9 8 Greatest Support 40 | 20 40 40 Greatest Overweight (x) 1 | . . 1 Average Overweight (x) . | . . . Largest Inventory Capacity 5 | 5 5 5 Average Capacity 5 | 5 5 5 Most Carried 3 | 3 3 3 Average Carried 1 | 1 1 2 Final Capacity 5 | 5 5 5 Final Carried 3 | 3 3 2 Class Distribution -------------------- 100% | Mutant Dominant Class ---------------- Mutant | -10/Materials Mutant | -10/Subcaves Resources | -11 -10 -10 ----------- Run | Yrd Mat Sub Matter Collected 330 | 180 125 25 Remotely . | . . . Salvage Created 561 | 109 344 108 Parts 30 | 5 19 6 Haulers Intercepted 2 | . 2 . Recyclers Shooed 2 | 1 1 . Parts Field Recycled . | . . . Retrieved Matter . | . . . Parts Self-Destructed 7 | . . 7 Prevented . | . . . Parts Restored . | . . . Kills | -11 -10 -10 ------- Run | Yrd Mat Sub Combat Hostiles Destroyed 7 | . 4 3 Guns 6 | . 3 3 Classes Destroyed 7 | 2 4 1 Worker 2 | . 2 . Tunneler 2 | 1 1 . Hauler 2 | . 2 . Recycler 2 | 1 1 . Watcher 1 | . 1 . Grunt 4 | . 4 . Subdweller 3 | . . 3 Best Kill Streak 2 | 2 2 2 Combat Bots Only 2 | . 1 2 Max Kills in Single Turn 1 | 1 1 1 Gunslinging . | . . . Exploded . | . . . Melee . | . . . Uniques/NPCs Destroyed . | . . . Combat | -11 -10 -10 -------- Run | Yrd Mat Sub Hostile Shots Fired 70 | . 23 47 Missed 21 | . 8 13 Hits 49 | . 15 34 Projectile 49 | . 15 34 Critical Strikes 1 | . 1 . Damage Taken 1020 | . 328 692 Core 251 | . 35 216 Absorbed by Shields . | . . . Regen/Repaired (Parts) 21 | . 21 . Core Remaining (%) 100 | 100 . . Volleys Fired 70 | 4 35 31 Largest 2 | 2 2 2 Hottest 100 | 90 90 100 Shots Fired 138 | 8 70 60 Gun 138 | 8 70 60 Cannon . | . . . Launcher . | . . . Special . | . . . Kinetic . | . . . Thermal 138 | 8 70 60 Explosive . | . . . Electromagnetic . | . . . Robot Hit Streak 20 | 4 13 20 Robot Miss Streak 3 | 2 3 1 Penetration Max . | . . . Secondary Targets . | . . . Shots Hit Robots 104 | 5 46 53 Core Hits 30 | 3 17 10 Critical Kills . | . . . Critical Parts Destroyed . | . . . Critical Strikes 2 | . 2 . Burn 2 | . 2 . Melee Attacks . | . . . Impact . | . . . Slashing . | . . . Piercing . | . . . Sneak Attacks . | . . . Combat Hostiles . | . . . Follow-up Attacks . | . . . Damage Inflicted 1506 | 62 763 681 Guns 1282 | 62 539 681 Cannons . | . . . Explosions 224 | . 224 . Melee . | . . . Ramming . | . . . Kinetic . | . . . Thermal 1282 | 62 539 681 Explosive 224 | . 224 . Electromagnetic . | . . . Impact . | . . . Slashing . | . . . Piercing . | . . . Highest Corruption . | . . . Average Corruption . | . . . Corruption Purged . | . . . Corruption Blocked . | . . . Overload Shots . | . . . Overflow Damage 45 | . 45 . Projectiles . | . . . Explosions 45 | . 45 . Melee . | . . . Knockbacks . | . . . Impact . | . . . Kinetic . | . . . Secondary . | . . . Self-Inflicted Damage 148 | . 148 . Shots 2 | . 2 . Rammed . | . . . Targets Rammed . | . . . Kicked . | . . . Crushed . | . . . Highest Temperature 85 | 60 85 . Average Temperature 24 | 25 24 . Received Heat Transfer 210 | . 120 90 Siege Activations . | . . . Martial Activations . | . . . Shielding Activations . | . . . Robots Disrupted . | . . . Combat Hostiles . | . . . Robots Corrupted . | . . . Combat Hostiles . | . . . Parts Fried . | . . . Impact Corruptions . | . . . Robots Melted 2 | . 2 . Combat Hostiles 1 | . 1 . Parts Melted 5 | . 4 1 Heat Transferred 3094 | 161 1550 1383 Parts Sabotaged . | . . . Parts Stolen . | . . . Parts Stripped . | . . . Power Chain Reactions . | . . . Alert | -11 -10 -10 ------- Run | Yrd Mat Sub Maximum Alert Level . | . . . Low Security (%) 100 | 100 100 . Level 1 . | . . . Level 2 . | . . . Level 3 . | . . . Level 4 . | . . . Level 5 . | . . . High Security . | . . . Max Security . | . . . Peak Influence 75 | 10 75 . Initial . | . . . Average 18 | 1 19 . Influence Increases 263 | 10 253 . Destroy 0b10 Robot/C 80 | . 80 . Destroy 0b10 Robot/NC 45 | 10 35 . Destroy Leader 26 | . 26 . Successful Hack 15 | . 15 . Disable Machine 45 | . 45 . Destroy Structure 37 | . 37 . Lose Combat Pursuer 15 | . 15 . Influence Decreases 263 | 10 212 41 Entered New Map 21 | . . 21 Time Decay 232 | 10 202 20 Lost Part 10 | . 10 . Squads Dispatched 1 | . 1 . Investigation 1 | . 1 . Extermination . | . . . Reinforcement . | . . . Assault . | . . . Garrison . | . . . Intercept . | . . . Searches Triggered . | . . . Construction Impeded . | . . . Haulers Reinforced . | . . . Active Scanning Responses . | . . . Cargo Convoy Interrupts . | . . . Stealth | -11 -10 -10 --------- Run | Yrd Mat Sub Distress Signals . | . . . Communications Jammed . | . . . Distress Signals . | . . . Times Spotted 15 | . 10 5 Peak Tracking Total 2 | . 2 2 Tactical Retreats 1 | . 1 . Traps | -11 -10 -10 ------- Run | Yrd Mat Sub Traps Triggered 1 | . 1 . Indirectly . | . . . Trap Hack Attempts . | . . . Triggered . | . . . Disarmed . | . . . Reprogrammed . | . . . Reused . | . . . Traps Extracted . | . . . Installed . | . . . Triggered . | . . . Machines | -11 -10 -10 ---------- Run | Yrd Mat Sub Machines Disabled 3 | . 3 . Max in Single Turn 2 | . 2 . Machines Repaired . | . . . Machines Dismantled . | . . . Machines Sabotaged . | . . . Overloaded Fab Kills . | . . . Hacking | -11 -10 -10 --------- Run | Yrd Mat Sub Machines Accessed 3 | . 3 . Terminals 2 | . 2 . Fabricators . | . . . Repair Stations 1 | . 1 . Recycling Units . | . . . Scanalyzers . | . . . Garrison Access . | . . . Total Hacks 8 | . 8 . Successful 6 | . 6 . Failed 2 | . 2 . Catastrophic . | . . . Database Lockouts . | . . . Manual 5 | . 5 . Terminals 4 | . 4 . Fabricators . | . . . Repair Stations 4 | . 4 . Recycling Units . | . . . Scanalyzers . | . . . Garrison Access . | . . . Terminal Hacks 1 | . 1 . Robot Analysis 1 | . 1 . Fabricator Hacks . | . . . Repair Station Hacks 3 | . 3 . Scan Component 2 | . 2 . Repair 1 | . 1 . Recycling Unit Hacks . | . . . Scanalyzer . | . . . Garrison Access Hacks . | . . . Unauthorized Hacks 2 | . 2 . Terminals 2 | . 2 . Botnet 2 | . 2 . Fabricators . | . . . Repair Stations . | . . . Recycling Units . | . . . Scanalyzers . | . . . Garrison Access . | . . . Data Cores Recovered . | . . . Used . | . . . Hacking Detections 2 | . 2 . Full Trace Events . | . . . Feedback Events . | . . . Feedback Blocked . | . . . Robot Schematics Acquired . | . . . Robots Built . | . . . Authchips . | . . . Time . | . . . Total Robot Build Rating . | . . . Part Schematics Acquired . | . . . Parts Built . | . . . Authchips . | . . . Time . | . . . Total Part Build Rating . | . . . Part Studies Acquired . | . . . Parts Repaired 1 | . 1 . Time 26 | . 26 . Parts Recycled . | . . . Recycled Matter . | . . . Retrieved Matter . | . . . Retrieved Components . | . . . Parts Scanalyzed . | . . . Part Schematics Acquired . | . . . Parts Damaged . | . . . Bothacking | -11 -10 -10 ------------ Run | Yrd Mat Sub Used RIF Installer . | . . . Robots Hacked . | . . . Non-combat . | . . . Combat . | . . . Robot Hacks Applied . | . . . Relay Couplers Released . | . . . Fabnet Peak Effective % . | . . . Robots Rewired . | . . . Allies Hacked . | . . . Hacks Repelled . | . . . Allies | -11 -10 -10 -------- Run | Yrd Mat Sub Total Allies . | . . . Largest Group . | . . . Highest-Rated Group . | . . . Highest-Rated Ally . | . . . Total Orders . | . . . Ally Attacks . | . . . Total Damage . | . . . Kills . | . . . Allies Corrupted . | . . . Allies Melted . | . . . Intel | -11 -10 -10 ------- Run | Yrd Mat Sub Active Infowar (turns) 1184 | 21 931 232 Sensors 11 | . 11 . Seismic 1184 | 21 931 232 Robot Analysis Total 1 | . 1 . Derelict Logs Recovered . | . . . Drone Launches . | . . . Drone Recoveries . | . . . Exploration | -11 -10 -10 ------------- Run | Yrd Mat Sub Turns Passed 1593 | 72 931 590 Spaces Moved 935 | 45 535 355 Core 183 | 5 . 178 Treads 501 | 8 416 77 Legs . | . . . Wheels 251 | 32 119 100 Hover . | . . . Flight . | . . . Fastest Speed 50 | 50 100 100 Average Speed 132 | 105 146 115 Slowest Speed 160 | 160 160 160 Overloaded Moves . | . . . Propulsion Burnouts . | . . . Robots Hopped . | . . . Potential Cave-ins . | . . . Cave-ins Triggered . | . . . Exploration Rate (%) 34 | 3 77 23 Regions Visited 2 Branch Regions 1 Pre-discovered Areas . | . . . Known Exits Taken . | . . . Unknown Exits Taken 2 | 1 1 . Scrap Searched . | . . . Spaces Dug . | . . . Terrain Destroyed 37 | . 37 . Melee . | . . . Projectile . | . . . AOE 37 | . 37 . Terrain Rammed . | . . . Walls Destroyed . | . . . Machines Disabled . | . . . Actions | -11 -10 -10 --------- Run | Yrd Mat Sub Total 1142 | 59 611 472 Wait 109 | . 31 78 Move 933 | 44 534 355 Hop . | . . . Pick Up 10 | 4 4 2 Fast Attach 8 | 6 1 1 Attach 4 | . 2 2 Detach . | . . . Swap 4 | . 2 2 Drop 4 | 1 2 1 Fire 70 | 4 35 31 Melee . | . . . Ram . | . . . Kick . | . . . Crush . | . . . Escape Stasis . | . . . Rewire . | . . . Trap . | . . . Miscellaneous . | . . . Route ------- -11/Scrapyard -10/Materials (discovered 4 exits: [*Mat] / [*Min x2] / [*Sub]) -10/Subcaves (discovered 2 exits: [*Scr x2]) History --------- Turn | Location | Event 3 | -11/Scrapyard | Discovered new exit (range 16) 73 | -11/Scrapyard | Entered Materials 74 | -10/Materials | Met a group of wandering Federalists 74 | -10/Materials | Discovered new exit (range 5) 176 | -10/Materials | Discovered new exit (range 8) 305 | -10/Materials | Discovered new exit (range 14) 307 | -10/Materials | Build established: Mutant 493 | -10/Materials | Discovered new exit (range 16) 554 | -10/Materials | Repaired Med. Laser 1004 | -10/Materials | Entered Subcaves 1005 | -10/Subcaves | Continued accompanying wandering Federalists (5) 1005 | -10/Subcaves | Approached by a straggling Scientist 1267 | -10/Subcaves | Lost 4 parts (1p1n1u1w) 1295 | -10/Subcaves | Scientist uncovered a shortcut to Scraptown 1297 | -10/Subcaves | Shifting Twisted Machinery released Sub. Laser 1575 | -10/Subcaves | Core integrity fell below 50% 1587 | -10/Subcaves | Core integrity fell below 20% 1594 | -10/Subcaves | Destroyed by RK-EEC(R) with Subdweller Machine Gun Last Messages --------------- 01244_ Acquired 5 matter. 01251_ Acquired Sub. Monowheel. 01252_ Acquired 10 matter. 01257_ Dropped Sml. Laser. I8-Z09(c): "I think it's somewhere west of here" 01295_ I8-Z09(c): "Hah, right again, there it is!" Sub. Laser falls loose from the Twisted Machinery. 01301_ I8-Z09(c) exits level. 01306_ Acquired Sub. Laser. 01353_ Acquired 10 matter. 01366_ Sub. Monowheel shoots sparks and powers down. 01550_ Lgt. Treads destroyed. 01553_ L4-MJV(R) destroyed. 01558_ Subatomizers dissect the Sub. Optics. 01563_ RK-EEC(R) affixes Scrap Shield Fragment to Scrap Shield. 01581_ Sub. Laser shoots sparks and powers down. 01582_ Subatomizers dissect the Disposable Heat Sink. 01583_ RK-EEC(R) affixes Scrap Shield Fragment to Scrap Shield. 01590_ Heat Sink destroyed. 01592_ Sml. Laser destroyed. Map ----- +----------------------------------------------------+ | ?????????????????????????????????????????????????? | | ?????????????????????????????????????????????????? | | ???????????##????????????????????????????????????? | | ??????????# ?????????????????????????????????????? | | ?????????? ?????????????????????????????????????? | | ?????????? ##????????????????????????????????????? | | ???????### $?????????????????????????????????????? | | ?####### # ###????????###????????????????????????? | | ?# #&"!" ######## #???????????????????????? | | ### &%& # # #????????##??????????????? | | ## &## #???????? #??????????????? | | ## ##?????? #??????????????? | | ### ""##?## #?????# #??????????????? | | #?# ""#???## ##????? ##?????????????? | | ### "##?## ###?? "#?????????????? | | ## ## "### "??? ""##????????????? | | ### """ " ?? " ?????????????? | | ## """ #????? " ??????????????? | | ## ## """ #????? " "??????????????? | | ### "##?#### "" "?????????????? | | ## ## ##?## """ " " ?????????????? | | ?# # ##?## "" " #????????????? | | ?## ### ##### ! " ""????????????? | | ??# ### #?# ## ## R%# ## ""???????????? | | ### ##?# ## =!###? " "???????????? | | #?? ## @#????""" ##???????????? | | #?? # ## # #?????"""##????????????? | | ## ##?# ######??????????????????????? | | ?# ##??# ##???????????????????????????? | | ## ##?# # ### #????????????????????????????? | | # ##?# ###?# #????????????????????????????? | | ###??######????####????????????????????????????? | | ##??????????????????????????????????????????????? | | ##???????????????????????????????????????????????? | | #????????????????????????????????????????????????? | | ?????????????????????????????????????????????????? | | ?????????????????????????????????????????????????? | | ?????????????????????????????????????????????????? | | ?????????????????????????????????????????????????? | | ?????????????????????????????????????????????????? | | ?????????????????????????????????????????????????? | | ?????????????????????????????????????????????????? | | ?????????????????????????????????????????????????? | | ?????????????????????????????????????????????????? | | ?????????????????????????????????????????????????? | | ?????????????????????????????????????????????????? | | ?????????????????????????????????????????????????? | | ?????????????????????????????????????????????????? | | ?????????????????????????????????????????????????? | | ?????????????????????????????????????????????????? | +----------------------------------------------------+ Best States ------------- Heat Dissipation 35 Energy Generation 10 Energy Capacity 250 Matter Stores 300 Matter Capacity 300 Sight Range 16 Robot Scan Range 14 Terrain Scan Density 10 Evasion (%) 40 Recoil Reduction 2 Item Schematics ----------------- None Robot Schematics ------------------ None Fabricated ------------ Nothing Repaired ---------- Med. Laser | 70% | -10/Materials Studied --------- None Alien Tech Used ----------------- None Achievements -------------- None Challenges ------------ None Game ------ Seed LobotomyBarrageArmor Manual? 1 Play Time 00:11:19 Cumulative 553.9 hours Start 2026.08.01 @ 22:20:56 End 2026.08.01 @ 22:29:24 Sessions 1 Manual Loads 0 Difficulty Rogue Special Mode None Game No. 235 Rogue 235 Adventurer 0 Explorer 0 Win Type - Total 33 Types 15/3/4/2/1/2/2/2/1/1 Lore% 90 Gallery% 81 Achievement% 77 Wizard Run 0 Options --------- Layout 0 ASCII 0 Keyboard 1 Movement Arrows Keybinds 0 Fullscreen 2 Font 18/Terminus Map View 76x50 Zoom Use 0% Tactical HUD 1 Map Filters BRIGHTNESS(90)|SATURATION(90) Filters NONE Steam 1 RUN: f429f892-214a-4cdf-a004-9d38252f65e1